[Event "January 9 Late 2024"]
[Site "https://www.chess.com"]
[Date "2024.01.09"]
[Round "6"]
[White "Nakamura, Hikaru"]
[Black "Grigoriants, Sergey"]
[Result "1-0"]
[Board "10"]
[TimeControl "180+1"]
[WhiteFideId "2016192"]
[BlackFideId "4130804"]
[WhiteElo "3198"]
[BlackElo "2890"]
[WhiteTeam "USA"]
[BlackTeam "HUN"]
[WhiteClock "0:00:14"]
[BlackClock "0:00:00"]

1. Nf3 {[%clk 0:03:00]}  d5 {[%clk 0:02:56]} 2. g3 {[%clk 0:03:01]}  g6 {[%clk 0:02:54]} 3. Bg2 {[%clk 0:03:01]}  Bg7 {[%clk 0:02:55]} 4. d4 {[%clk 0:03:01]}  Nf6 {[%clk 0:02:55]} 5. O-O {[%clk 0:03:02]}  O-O {[%clk 0:02:54]} 6. c4 {[%clk 0:03:03]}  c6 {[%clk 0:02:51]} 7. Qb3 {[%clk 0:03:02]}  Qb6 {[%clk 0:02:50]} 8. Nc3 {[%clk 0:03:01]}  dxc4 {[%clk 0:02:37]} 9. Qxc4 {[%clk 0:03:01]}  Be6 {[%clk 0:02:35]} 10. Qa4 {[%clk 0:03:00]}  Bf5 {[%clk 0:02:33]} 11. Qa3 {[%clk 0:02:57]}  Re8 {[%clk 0:02:30]} 12. Bf4 {[%clk 0:02:55]}  Nbd7 {[%clk 0:02:21]} 13. Rfd1 {[%clk 0:02:54]}  a5 {[%clk 0:02:13]} 14. Nh4 {[%clk 0:02:41]}  Be6 {[%clk 0:01:58]} 15. e4 {[%clk 0:02:41]}  Bc4 {[%clk 0:01:52]} 16. b3 {[%clk 0:02:37]}  Ba6 {[%clk 0:01:48]} 17. Nf3 {[%clk 0:02:36]}  Qb4 {[%clk 0:01:38]} 18. Qc1 {[%clk 0:02:28]}  Nh5 {[%clk 0:01:30]} 19. Be3 {[%clk 0:02:21]}  Rac8 {[%clk 0:01:25]} 20. Rb1 {[%clk 0:02:14]}  e5 {[%clk 0:01:19]} 21. Bh3 {[%clk 0:02:08]}  Rcd8 {[%clk 0:00:54]} 22. d5 {[%clk 0:02:05]}  Nhf6 {[%clk 0:00:49]} 23. a3 {[%clk 0:02:03]}  Qf8 {[%clk 0:00:39]} 24. dxc6 {[%clk 0:01:41]}  bxc6 {[%clk 0:00:38]} 25. Qc2 {[%clk 0:01:39]}  Qxa3 {[%clk 0:00:28]} 26. Ra1 {[%clk 0:01:31]}  Qb4 {[%clk 0:00:22]} 27. Ra4 {[%clk 0:01:30]}  Qb7 {[%clk 0:00:22]} 28. Rxa5 {[%clk 0:01:31]}  Ra8 {[%clk 0:00:12]} 29. Rda1 {[%clk 0:01:16]}  Nf8 {[%clk 0:00:01]} 30. Nxe5 {[%clk 0:00:46]}  Bb5 {[%clk 0:00:01]} 31. Rxa8 {[%clk 0:00:46]}  Rxa8 {[%clk 0:00:02]} 32. Rxa8 {[%clk 0:00:46]}  Qxa8 {[%clk 0:00:02]} 33. f4 {[%clk 0:00:30]}  Qe8 {[%clk 0:00:02]} 34. Nxb5 {[%clk 0:00:27]}  cxb5 {[%clk 0:00:03]} 35. Bg2 {[%clk 0:00:27]}  N8d7 {[%clk 0:00:04]} 36. Nxd7 {[%clk 0:00:27]}  Qxd7 {[%clk 0:00:04]} 37. h3 {[%clk 0:00:23]}  h5 {[%clk 0:00:04]} 38. e5 {[%clk 0:00:23]}  Nh7 {[%clk 0:00:04]} 39. Qd2 {[%clk 0:00:22]}  Qe7 {[%clk 0:00:04]} 40. Qd6 {[%clk 0:00:21]}  Qe8 {[%clk 0:00:02]} 41. Bd5 {[%clk 0:00:20]}  Nf8 {[%clk 0:00:01]} 42. Qc6 {[%clk 0:00:19]}  Qd8 {[%clk 0:00:01]} 43. Qxb5 {[%clk 0:00:19]}  Ne6 {[%clk 0:00:01]} 44. Qc4 {[%clk 0:00:16]}  h4 {[%clk 0:00:01]} 45. Bxe6 {[%clk 0:00:15]}  fxe6 {[%clk 0:00:02]} 46. g4 {[%clk 0:00:13]}  Kh7 {[%clk 0:00:03]} 47. Kf2 {[%clk 0:00:13]}  Qd1 {[%clk 0:00:03]} 48. f5 {[%clk 0:00:13]}  gxf5 {[%clk 0:00:02]} 49. gxf5 {[%clk 0:00:14]}  Bxe5 {[%clk 0:00:02]} 50. Qxh4+ {[%clk 0:00:14]}  Kg7 {[%clk 0:00:00]} 51. Qh6+ {[%clk 0:00:14]} 1-0

[Event "January 9 Late 2024"]
[Site "https://www.chess.com"]
[Date "2024.01.09"]
[Round "6"]
[White "Sarana, Alexey"]
[Black "Pichot, Alan"]
[Result "1-0"]
[Board "15"]
[TimeControl "180+1"]
[WhiteFideId "24133795"]
[BlackFideId "110973"]
[WhiteElo "3046"]
[BlackElo "2847"]
[WhiteTeam "SRB"]
[BlackTeam "ESP"]
[WhiteClock "0:01:24"]
[BlackClock "0:00:04"]

1. d4 {[%clk 0:03:00]}  d5 {[%clk 0:03:00]} 2. c4 {[%clk 0:03:01]}  e6 {[%clk 0:03:00]} 3. Nc3 {[%clk 0:03:02]}  a6 {[%clk 0:02:59]} 4. cxd5 {[%clk 0:03:00]}  exd5 {[%clk 0:03:00]} 5. Nf3 {[%clk 0:02:58]}  Nf6 {[%clk 0:02:59]} 6. Bg5 {[%clk 0:02:53]}  Be6 {[%clk 0:02:58]} 7. Qb3 {[%clk 0:02:51]}  Nbd7 {[%clk 0:02:55]} 8. e3 {[%clk 0:02:51]}  b5 {[%clk 0:02:55]} 9. Qc2 {[%clk 0:02:46]}  h6 {[%clk 0:02:52]} 10. Bh4 {[%clk 0:02:46]}  c5 {[%clk 0:02:48]} 11. dxc5 {[%clk 0:02:43]}  Bxc5 {[%clk 0:02:49]} 12. Bd3 {[%clk 0:02:44]}  Rc8 {[%clk 0:02:47]} 13. O-O {[%clk 0:02:40]}  b4 {[%clk 0:02:23]} 14. Na4 {[%clk 0:02:40]}  Bxe3 {[%clk 0:02:21]} 15. Qe2 {[%clk 0:02:40]}  Bf4 {[%clk 0:02:15]} 16. Bxa6 {[%clk 0:02:35]}  Ra8 {[%clk 0:02:14]} 17. Bb5 {[%clk 0:02:32]}  O-O {[%clk 0:02:13]} 18. Nd4 {[%clk 0:02:26]}  Re8 {[%clk 0:01:48]} 19. Qf3 {[%clk 0:02:21]}  g5 {[%clk 0:01:45]} 20. Bg3 {[%clk 0:02:13]}  Bg4 {[%clk 0:01:34]} 21. Qb3 {[%clk 0:02:11]}  Qb8 {[%clk 0:01:22]} 22. Qxb4 {[%clk 0:02:04]}  Re4 {[%clk 0:01:22]} 23. Nc3 {[%clk 0:02:01]}  Re8 {[%clk 0:01:09]} 24. Nc6 {[%clk 0:01:50]}  Qc7 {[%clk 0:00:48]} 25. Ne7+ {[%clk 0:01:49]}  Rxe7 {[%clk 0:00:35]} 26. Qxe7 {[%clk 0:01:50]}  Re8 {[%clk 0:00:29]} 27. Nxd5 {[%clk 0:01:29]}  Rxe7 {[%clk 0:00:21]} 28. Nxc7 {[%clk 0:01:28]}  Nc5 {[%clk 0:00:04]} 29. Na6 {[%clk 0:01:24]} 1-0

[Event "January 9 Late 2024"]
[Site "https://www.chess.com"]
[Date "2024.01.09"]
[Round "6"]
[White "Hakobyan, Aram"]
[Black "Velikanov, Alexander"]
[Result "1-0"]
[Board "18"]
[TimeControl "180+1"]
[WhiteFideId "13306677"]
[BlackFideId "2039290"]
[WhiteElo "3005"]
[BlackElo "2806"]
[WhiteTeam "ARM"]
[BlackTeam "USA"]
[WhiteClock "0:00:33"]
[BlackClock "0:00:14"]

1. e4 {[%clk 0:03:00]}  c5 {[%clk 0:02:59]} 2. Nf3 {[%clk 0:03:01]}  a6 {[%clk 0:02:59]} 3. g3 {[%clk 0:03:00]}  b5 {[%clk 0:02:57]} 4. d4 {[%clk 0:03:00]}  cxd4 {[%clk 0:02:57]} 5. Nxd4 {[%clk 0:03:01]}  Bb7 {[%clk 0:02:57]} 6. Bg2 {[%clk 0:03:01]}  e6 {[%clk 0:02:50]} 7. O-O {[%clk 0:03:00]}  Bc5 {[%clk 0:02:46]} 8. Be3 {[%clk 0:02:46]}  d6 {[%clk 0:02:41]} 9. Re1 {[%clk 0:02:30]}  Ne7 {[%clk 0:02:39]} 10. a4 {[%clk 0:02:29]}  b4 {[%clk 0:02:35]} 11. Nd2 {[%clk 0:02:29]}  O-O {[%clk 0:02:29]} 12. N2b3 {[%clk 0:02:29]}  Ba7 {[%clk 0:02:30]} 13. Qh5 {[%clk 0:02:26]}  e5 {[%clk 0:02:11]} 14. Nf5 {[%clk 0:02:23]}  g6 {[%clk 0:02:12]} 15. Nh6+ {[%clk 0:02:04]}  Kg7 {[%clk 0:02:12]} 16. Qh4 {[%clk 0:02:05]}  Bxe3 {[%clk 0:02:03]} 17. Rxe3 {[%clk 0:02:03]}  a5 {[%clk 0:01:35]} 18. Rd1 {[%clk 0:02:01]}  Nd5 {[%clk 0:01:30]} 19. Qxd8 {[%clk 0:01:22]}  Rxd8 {[%clk 0:01:31]} 20. exd5 {[%clk 0:01:20]}  Kxh6 {[%clk 0:01:31]} 21. Bf1 {[%clk 0:01:03]}  Nd7 {[%clk 0:01:26]} 22. Bb5 {[%clk 0:01:03]}  Nb6 {[%clk 0:01:27]} 23. Bc6 {[%clk 0:01:04]}  Bxc6 {[%clk 0:01:15]} 24. dxc6 {[%clk 0:01:05]}  Nc4 {[%clk 0:01:03]} 25. Re4 {[%clk 0:00:58]}  Nxb2 {[%clk 0:00:58]} 26. Rd5 {[%clk 0:00:58]}  Nxa4 {[%clk 0:00:56]} 27. Rxa5 {[%clk 0:00:44]}  Rxa5 {[%clk 0:00:33]} 28. Nxa5 {[%clk 0:00:45]}  Ra8 {[%clk 0:00:32]} 29. Nb7 {[%clk 0:00:46]}  Nc5 {[%clk 0:00:22]} 30. Nxc5 {[%clk 0:00:36]}  dxc5 {[%clk 0:00:23]} 31. Rxe5 {[%clk 0:00:37]}  c4 {[%clk 0:00:24]} 32. Re4 {[%clk 0:00:37]}  b3 {[%clk 0:00:23]} 33. Rxc4 {[%clk 0:00:38]}  b2 {[%clk 0:00:18]} 34. Rb4 {[%clk 0:00:38]}  Rc8 {[%clk 0:00:16]} 35. Rxb2 {[%clk 0:00:37]}  Rxc6 {[%clk 0:00:17]} 36. Kf1 {[%clk 0:00:36]}  Kg5 {[%clk 0:00:17]} 37. h3 {[%clk 0:00:36]}  f5 {[%clk 0:00:17]} 38. Ke2 {[%clk 0:00:33]}  Rc5 {[%clk 0:00:17]} 39. Kd3 {[%clk 0:00:31]}  f4 {[%clk 0:00:17]} 40. c4 {[%clk 0:00:31]}  fxg3 {[%clk 0:00:17]} 41. fxg3 {[%clk 0:00:32]}  h5 {[%clk 0:00:14]} 42. Rb5 {[%clk 0:00:33]} 1-0

[Event "January 9 Late 2024"]
[Site "https://www.chess.com"]
[Date "2024.01.09"]
[Round "6"]
[White "Deac, Bogdan-Daniel"]
[Black "Wafa, Hamed"]
[Result "1-0"]
[Board "19"]
[TimeControl "180+1"]
[WhiteFideId "1226380"]
[BlackFideId "10628452"]
[WhiteElo "3001"]
[BlackElo "2798"]
[WhiteTeam "ROU"]
[BlackTeam "EGY"]
[WhiteClock "0:00:55"]
[BlackClock "0:00:00"]

1. b3 {[%clk 0:03:00]}  e5 {[%clk 0:02:58]} 2. Bb2 {[%clk 0:03:01]}  Nc6 {[%clk 0:02:58]} 3. Nf3 {[%clk 0:03:02]}  e4 {[%clk 0:02:55]} 4. Nd4 {[%clk 0:03:02]}  Nf6 {[%clk 0:02:56]} 5. e3 {[%clk 0:03:02]}  Bc5 {[%clk 0:02:54]} 6. Nf5 {[%clk 0:03:01]}  Kf8 {[%clk 0:02:45]} 7. c4 {[%clk 0:02:57]}  d5 {[%clk 0:02:40]} 8. cxd5 {[%clk 0:02:56]}  Qxd5 {[%clk 0:02:28]} 9. Ng3 {[%clk 0:02:54]}  Bg4 {[%clk 0:02:22]} 10. Qc1 {[%clk 0:02:49]}  Re8 {[%clk 0:01:37]} 11. Bxf6 {[%clk 0:02:39]}  gxf6 {[%clk 0:01:36]} 12. Nc3 {[%clk 0:02:39]}  Qe5 {[%clk 0:01:12]} 13. Ncxe4 {[%clk 0:02:27]}  Bb6 {[%clk 0:01:12]} 14. Qc3 {[%clk 0:02:16]}  f5 {[%clk 0:01:06]} 15. h3 {[%clk 0:02:03]}  Qxc3 {[%clk 0:00:41]} 16. dxc3 {[%clk 0:01:35]}  fxe4 {[%clk 0:00:14]} 17. hxg4 {[%clk 0:01:34]}  Re5 {[%clk 0:00:08]} 18. O-O-O {[%clk 0:01:20]}  a5 {[%clk 0:00:03]} 19. Bc4 {[%clk 0:01:18]}  Ke7 {[%clk 0:00:02]} 20. Nf5+ {[%clk 0:01:07]}  Ke8 {[%clk 0:00:02]} 21. Ng3 {[%clk 0:00:59]}  Ke7 {[%clk 0:00:02]} 22. Bd5 {[%clk 0:00:59]}  Nd8 {[%clk 0:00:02]} 23. Bxe4 {[%clk 0:00:56]}  Ne6 {[%clk 0:00:00]} 24. Nf5+ {[%clk 0:00:55]} 1-0

[Event "January 9 Late 2024"]
[Site "https://www.chess.com"]
[Date "2024.01.09"]
[Round "6"]
[White "Krzyzanowski, Marcin"]
[Black "Chigaev, Maksim"]
[Result "0-1"]
[Board "21"]
[TimeControl "180+1"]
[WhiteFideId "1132199"]
[BlackFideId "4108116"]
[WhiteElo "2778"]
[BlackElo "2979"]
[WhiteTeam "POL"]
[BlackTeam "ESP"]
[WhiteClock "0:00:02"]
[BlackClock "0:00:05"]

1. Nf3 {[%clk 0:03:00]}  Nf6 {[%clk 0:02:59]} 2. g3 {[%clk 0:03:01]}  g6 {[%clk 0:02:59]} 3. Bg2 {[%clk 0:03:02]}  Bg7 {[%clk 0:03:00]} 4. O-O {[%clk 0:03:02]}  O-O {[%clk 0:03:00]} 5. c4 {[%clk 0:03:03]}  d6 {[%clk 0:03:01]} 6. d4 {[%clk 0:03:03]}  c5 {[%clk 0:03:00]} 7. dxc5 {[%clk 0:02:59]}  dxc5 {[%clk 0:03:01]} 8. Ne5 {[%clk 0:03:00]}  Qd4 {[%clk 0:02:54]} 9. Nd3 {[%clk 0:02:55]}  Nc6 {[%clk 0:02:52]} 10. Be3 {[%clk 0:02:51]}  Qxc4 {[%clk 0:02:52]} 11. Na3 {[%clk 0:02:49]}  Qg4 {[%clk 0:02:52]} 12. Nxc5 {[%clk 0:02:45]}  Qh5 {[%clk 0:02:45]} 13. f3 {[%clk 0:02:31]}  Rd8 {[%clk 0:02:26]} 14. Qc1 {[%clk 0:02:31]}  b6 {[%clk 0:02:08]} 15. Ne4 {[%clk 0:02:00]}  Bb7 {[%clk 0:01:46]} 16. g4 {[%clk 0:02:00]}  Qd5 {[%clk 0:01:30]} 17. Nc3 {[%clk 0:01:37]}  Qe6 {[%clk 0:01:24]} 18. Bf2 {[%clk 0:01:32]}  Rac8 {[%clk 0:01:18]} 19. Rd1 {[%clk 0:01:33]}  h5 {[%clk 0:01:09]} 20. g5 {[%clk 0:01:30]}  Nd5 {[%clk 0:01:09]} 21. Nxd5 {[%clk 0:01:26]}  Rxd5 {[%clk 0:01:10]} 22. Rxd5 {[%clk 0:01:18]}  Qxd5 {[%clk 0:01:09]} 23. Qc4 {[%clk 0:00:59]}  Qxg5 {[%clk 0:01:04]} 24. h4 {[%clk 0:00:53]}  Qf6 {[%clk 0:00:44]} 25. Rb1 {[%clk 0:00:50]}  Qf5 {[%clk 0:00:29]} 26. Qb5 {[%clk 0:00:45]}  Nd4 {[%clk 0:00:20]} 27. Qxf5 {[%clk 0:00:42]}  Nxf5 {[%clk 0:00:21]} 28. Nb5 {[%clk 0:00:41]}  a6 {[%clk 0:00:20]} 29. Nc3 {[%clk 0:00:41]}  b5 {[%clk 0:00:19]} 30. e4 {[%clk 0:00:39]}  Nd4 {[%clk 0:00:18]} 31. Rd1 {[%clk 0:00:38]}  e5 {[%clk 0:00:16]} 32. Nd5 {[%clk 0:00:34]}  Rc2 {[%clk 0:00:11]} 33. Bxd4 {[%clk 0:00:28]}  exd4 {[%clk 0:00:10]} 34. f4 {[%clk 0:00:29]}  Bxd5 {[%clk 0:00:08]} 35. exd5 {[%clk 0:00:29]}  Bf8 {[%clk 0:00:09]} 36. f5 {[%clk 0:00:26]}  Rxb2 {[%clk 0:00:09]} 37. fxg6 {[%clk 0:00:26]}  fxg6 {[%clk 0:00:10]} 38. Be4 {[%clk 0:00:26]}  Kg7 {[%clk 0:00:10]} 39. Rc1 {[%clk 0:00:25]}  Re2 {[%clk 0:00:10]} 40. Rc7+ {[%clk 0:00:25]}  Kh6 {[%clk 0:00:10]} 41. Bd3 {[%clk 0:00:18]}  Re3 {[%clk 0:00:10]} 42. Rf7 {[%clk 0:00:18]}  Bc5 {[%clk 0:00:05]} 43. d6 {[%clk 0:00:13]}  Bxd6 {[%clk 0:00:05]} 44. Rf6 {[%clk 0:00:13]}  Rxd3 {[%clk 0:00:05]} 45. Rxd6 {[%clk 0:00:13]}  a5 {[%clk 0:00:06]} 46. Rd5 {[%clk 0:00:13]}  b4 {[%clk 0:00:03]} 47. Rxa5 {[%clk 0:00:13]}  Rg3+ {[%clk 0:00:03]} 48. Kf2 {[%clk 0:00:13]}  Rg4 {[%clk 0:00:03]} 49. Rb5 {[%clk 0:00:12]}  d3 {[%clk 0:00:03]} 50. Rd5 {[%clk 0:00:10]}  Rxh4 {[%clk 0:00:04]} 51. Rxd3 {[%clk 0:00:11]}  Rh2+ {[%clk 0:00:04]} 52. Kg3 {[%clk 0:00:11]}  Rxa2 {[%clk 0:00:05]} 53. Rd4 {[%clk 0:00:12]}  Ra3+ {[%clk 0:00:06]} 54. Kh2 {[%clk 0:00:09]}  b3 {[%clk 0:00:06]} 55. Rb4 {[%clk 0:00:10]}  Ra2+ {[%clk 0:00:06]} 56. Kg3 {[%clk 0:00:10]}  b2 {[%clk 0:00:06]} 57. Rb6 {[%clk 0:00:09]}  Ra5 {[%clk 0:00:05]} 58. Kh4 {[%clk 0:00:09]}  Ra4+ {[%clk 0:00:05]} 59. Kg3 {[%clk 0:00:09]}  Rg4+ {[%clk 0:00:05]} 60. Kh3 {[%clk 0:00:09]}  Rf4 {[%clk 0:00:06]} 61. Kg3 {[%clk 0:00:09]}  Rf5 {[%clk 0:00:06]} 62. Rxb2 {[%clk 0:00:09]}  Kg5 {[%clk 0:00:06]} 63. Rb4 {[%clk 0:00:08]}  Rd5 {[%clk 0:00:05]} 64. Rb3 {[%clk 0:00:09]}  Re5 {[%clk 0:00:05]} 65. Kh3 {[%clk 0:00:10]}  Kf5 {[%clk 0:00:05]} 66. Rf3+ {[%clk 0:00:10]}  Ke6 {[%clk 0:00:05]} 67. Ra3 {[%clk 0:00:10]}  Kf6 {[%clk 0:00:05]} 68. Rf3+ {[%clk 0:00:09]}  Kg5 {[%clk 0:00:05]} 69. Rg3+ {[%clk 0:00:10]}  Kh6 {[%clk 0:00:05]} 70. Ra3 {[%clk 0:00:09]}  Re6 {[%clk 0:00:06]} 71. Kg3 {[%clk 0:00:07]}  g5 {[%clk 0:00:06]} 72. Ra8 {[%clk 0:00:06]}  Re3+ {[%clk 0:00:04]} 73. Kf2 {[%clk 0:00:07]}  Rd3 {[%clk 0:00:04]} 74. Ra6+ {[%clk 0:00:06]}  Kg7 {[%clk 0:00:05]} 75. Ke2 {[%clk 0:00:04]}  Rd7 {[%clk 0:00:04]} 76. Kf3 {[%clk 0:00:04]}  Rf7+ {[%clk 0:00:05]} 77. Kg3 {[%clk 0:00:03]}  Rf6 {[%clk 0:00:05]} 78. Ra8 {[%clk 0:00:03]}  Kg6 {[%clk 0:00:04]} 79. Rh8 {[%clk 0:00:03]}  h4+ {[%clk 0:00:04]} 80. Kh3 {[%clk 0:00:04]}  Rf3+ {[%clk 0:00:04]} 81. Kh2 {[%clk 0:00:04]}  Rg3 {[%clk 0:00:04]} 82. Rf8 {[%clk 0:00:03]}  Kh5 {[%clk 0:00:04]} 83. Rf2 {[%clk 0:00:02]}  Rb3 {[%clk 0:00:04]} 84. Rc2 {[%clk 0:00:02]}  Rb4 {[%clk 0:00:05]} 85. Rc5 {[%clk 0:00:02]}  Kg4 {[%clk 0:00:05]} 86. Rc2 {[%clk 0:00:02]}  Rf4 {[%clk 0:00:05]} 87. Rg2+ {[%clk 0:00:02]}  Kh5 {[%clk 0:00:05]} 88. Ra2 {[%clk 0:00:03]}  Rf5 {[%clk 0:00:05]} 89. Ra4 {[%clk 0:00:03]}  g4 {[%clk 0:00:06]} 90. Rb4 {[%clk 0:00:02]}  Kg5 {[%clk 0:00:06]} 91. Ra4 {[%clk 0:00:02]}  h3 {[%clk 0:00:06]} 92. Ra3 {[%clk 0:00:01]}  Rf2+ {[%clk 0:00:05]} 93. Kg3 {[%clk 0:00:02]}  Rg2# {[%clk 0:00:05]} 0-1

[Event "January 9 Late 2024"]
[Site "https://www.chess.com"]
[Date "2024.01.09"]
[Round "6"]
[White "Niedbala, Bartlomiej"]
[Black "Kollars, Dmitrij"]
[Result "0-1"]
[Board "25"]
[TimeControl "180+1"]
[WhiteFideId "21834008"]
[BlackFideId "12909572"]
[WhiteElo "2688"]
[BlackElo "2967"]
[WhiteTeam "POL"]
[BlackTeam "GER"]
[WhiteClock "0:00:08"]
[BlackClock "0:00:10"]

1. e4 {[%clk 0:03:00]}  e5 {[%clk 0:02:58]} 2. Nf3 {[%clk 0:02:56]}  Nc6 {[%clk 0:02:59]} 3. Nc3 {[%clk 0:02:54]}  Nf6 {[%clk 0:02:58]} 4. d4 {[%clk 0:02:54]}  exd4 {[%clk 0:02:59]} 5. Nxd4 {[%clk 0:02:55]}  Bc5 {[%clk 0:02:58]} 6. Be3 {[%clk 0:02:53]}  Bb6 {[%clk 0:02:58]} 7. Qd2 {[%clk 0:02:46]}  O-O {[%clk 0:02:58]} 8. O-O-O {[%clk 0:02:42]}  Re8 {[%clk 0:02:58]} 9. f3 {[%clk 0:02:38]}  d5 {[%clk 0:02:57]} 10. exd5 {[%clk 0:02:14]}  Nxd5 {[%clk 0:02:50]} 11. Bg5 {[%clk 0:02:11]}  Nde7 {[%clk 0:02:23]} 12. Nxc6 {[%clk 0:01:54]}  Qxd2+ {[%clk 0:02:23]} 13. Bxd2 {[%clk 0:01:49]}  Nxc6 {[%clk 0:02:24]} 14. Nd5 {[%clk 0:01:47]}  Be6 {[%clk 0:02:18]} 15. Nxb6 {[%clk 0:01:47]}  axb6 {[%clk 0:02:19]} 16. a3 {[%clk 0:01:47]}  Rad8 {[%clk 0:02:09]} 17. Bb5 {[%clk 0:01:38]}  Rd5 {[%clk 0:02:08]} 18. Ba4 {[%clk 0:01:27]}  b5 {[%clk 0:01:36]} 19. Bb3 {[%clk 0:01:26]}  Rf5 {[%clk 0:01:23]} 20. Bxe6 {[%clk 0:01:19]}  Rxe6 {[%clk 0:01:24]} 21. Ba5 {[%clk 0:01:09]}  b6 {[%clk 0:00:55]} 22. Bc3 {[%clk 0:01:08]}  h5 {[%clk 0:00:51]} 23. Rd7 {[%clk 0:01:04]}  Re7 {[%clk 0:00:51]} 24. Rhd1 {[%clk 0:01:00]}  h4 {[%clk 0:00:49]} 25. Rxe7 {[%clk 0:00:52]}  Nxe7 {[%clk 0:00:50]} 26. h3 {[%clk 0:00:47]}  Nd5 {[%clk 0:00:49]} 27. Bd2 {[%clk 0:00:47]}  c6 {[%clk 0:00:37]} 28. Re1 {[%clk 0:00:46]}  Kf8 {[%clk 0:00:27]} 29. Re4 {[%clk 0:00:42]}  g5 {[%clk 0:00:27]} 30. b3 {[%clk 0:00:40]}  Nf6 {[%clk 0:00:20]} 31. Re1 {[%clk 0:00:37]}  Nh5 {[%clk 0:00:19]} 32. Be3 {[%clk 0:00:35]}  c5 {[%clk 0:00:18]} 33. b4 {[%clk 0:00:35]}  f6 {[%clk 0:00:17]} 34. Rd1 {[%clk 0:00:29]}  Ke7 {[%clk 0:00:17]} 35. Re1 {[%clk 0:00:24]}  Kd6 {[%clk 0:00:17]} 36. Rd1+ {[%clk 0:00:24]}  Kc7 {[%clk 0:00:15]} 37. Kb2 {[%clk 0:00:14]}  Re5 {[%clk 0:00:15]} 38. Re1 {[%clk 0:00:08]}  Kc6 {[%clk 0:00:15]} 39. Kc1 {[%clk 0:00:05]}  Nf4 {[%clk 0:00:13]} 40. Bd2 {[%clk 0:00:02]}  Rxe1+ {[%clk 0:00:09]} 41. Bxe1 {[%clk 0:00:03]}  Nxg2 {[%clk 0:00:10]} 42. Bd2 {[%clk 0:00:04]}  Kd5 {[%clk 0:00:09]} 43. Kd1 {[%clk 0:00:05]}  Ke5 {[%clk 0:00:09]} 44. Ke2 {[%clk 0:00:05]}  Nf4+ {[%clk 0:00:09]} 45. Kf1 {[%clk 0:00:04]}  Nxh3 {[%clk 0:00:09]} 46. bxc5 {[%clk 0:00:05]}  bxc5 {[%clk 0:00:09]} 47. Be3 {[%clk 0:00:06]}  c4 {[%clk 0:00:08]} 48. Bb6 {[%clk 0:00:05]}  Nf4 {[%clk 0:00:09]} 49. Kf2 {[%clk 0:00:05]}  Ne6 {[%clk 0:00:09]} 50. Ba7 {[%clk 0:00:04]}  Nd4 {[%clk 0:00:08]} 51. Bb8+ {[%clk 0:00:04]}  Kf5 {[%clk 0:00:09]} 52. c3 {[%clk 0:00:05]}  Ne6 {[%clk 0:00:07]} 53. Ke3 {[%clk 0:00:05]}  g4 {[%clk 0:00:06]} 54. fxg4+ {[%clk 0:00:04]}  Kxg4 {[%clk 0:00:07]} 55. Bd6 {[%clk 0:00:04]}  f5 {[%clk 0:00:07]} 56. Kf2 {[%clk 0:00:05]}  f4 {[%clk 0:00:08]} 57. Be5 {[%clk 0:00:05]}  Ng5 {[%clk 0:00:08]} 58. Kg2 {[%clk 0:00:05]}  h3+ {[%clk 0:00:08]} 59. Kh1 {[%clk 0:00:06]}  Kg3 {[%clk 0:00:08]} 60. a4 {[%clk 0:00:05]}  bxa4 {[%clk 0:00:08]} 61. Bd6 {[%clk 0:00:06]}  Ne4 {[%clk 0:00:07]} 62. Ba3 {[%clk 0:00:06]}  Nf2+ {[%clk 0:00:08]} 63. Kg1 {[%clk 0:00:06]}  h2+ {[%clk 0:00:08]} 64. Kf1 {[%clk 0:00:07]}  h1=Q+ {[%clk 0:00:09]} 65. Ke2 {[%clk 0:00:08]}  Qd1# {[%clk 0:00:10]} 0-1

[Event "January 9 Late 2024"]
[Site "https://www.chess.com"]
[Date "2024.01.09"]
[Round "6"]
[White "Bok, Benjamin"]
[Black "Boyer, Mahel"]
[Result "1-0"]
[Board "26"]
[TimeControl "180+1"]
[WhiteFideId "1017063"]
[BlackFideId "45102422"]
[WhiteElo "2938"]
[BlackElo "2685"]
[WhiteTeam "NED"]
[BlackTeam "FRA"]
[WhiteClock "0:00:05"]
[BlackClock "0:00:04"]

1. d4 {[%clk 0:03:00]}  d6 {[%clk 0:02:59]} 2. Nf3 {[%clk 0:03:00]}  g6 {[%clk 0:02:59]} 3. e4 {[%clk 0:03:00]}  Bg7 {[%clk 0:02:59]} 4. Bc4 {[%clk 0:03:00]}  e6 {[%clk 0:02:59]} 5. O-O {[%clk 0:02:59]}  d5 {[%clk 0:02:57]} 6. exd5 {[%clk 0:02:33]}  exd5 {[%clk 0:02:57]} 7. Re1+ {[%clk 0:02:34]}  Ne7 {[%clk 0:02:57]} 8. Bb3 {[%clk 0:02:34]}  O-O {[%clk 0:02:57]} 9. Bg5 {[%clk 0:02:34]}  f6 {[%clk 0:02:58]} 10. Bd2 {[%clk 0:02:23]}  Nbc6 {[%clk 0:02:36]} 11. c4 {[%clk 0:02:20]}  Kh8 {[%clk 0:02:24]} 12. Nc3 {[%clk 0:02:18]}  Bg4 {[%clk 0:02:24]} 13. Be3 {[%clk 0:02:07]}  f5 {[%clk 0:02:09]} 14. cxd5 {[%clk 0:01:58]}  Bxf3 {[%clk 0:01:44]} 15. Qxf3 {[%clk 0:01:41]}  Nxd4 {[%clk 0:01:44]} 16. Bxd4 {[%clk 0:01:41]}  Bxd4 {[%clk 0:01:45]} 17. Rad1 {[%clk 0:01:41]}  Bg7 {[%clk 0:01:40]} 18. d6 {[%clk 0:01:37]}  cxd6 {[%clk 0:01:38]} 19. Qxb7 {[%clk 0:01:38]}  Bf6 {[%clk 0:01:33]} 20. Re6 {[%clk 0:01:00]}  d5 {[%clk 0:01:07]} 21. h3 {[%clk 0:00:55]}  d4 {[%clk 0:01:06]} 22. Nb5 {[%clk 0:00:46]}  Rb8 {[%clk 0:01:05]} 23. Qa6 {[%clk 0:00:43]}  Rb6 {[%clk 0:00:55]} 24. Rxb6 {[%clk 0:00:43]}  Qxb6 {[%clk 0:00:56]} 25. Qxb6 {[%clk 0:00:29]}  axb6 {[%clk 0:00:57]} 26. Kf1 {[%clk 0:00:27]}  Rd8 {[%clk 0:00:51]} 27. Bc4 {[%clk 0:00:20]}  Nd5 {[%clk 0:00:21]} 28. g3 {[%clk 0:00:16]}  Nb4 {[%clk 0:00:18]} 29. a3 {[%clk 0:00:16]}  Nc6 {[%clk 0:00:19]} 30. f4 {[%clk 0:00:16]}  Re8 {[%clk 0:00:16]} 31. Re1 {[%clk 0:00:15]}  Re3 {[%clk 0:00:15]} 32. Kf2 {[%clk 0:00:11]}  Na5 {[%clk 0:00:13]} 33. Bd5 {[%clk 0:00:08]}  Rd3 {[%clk 0:00:10]} 34. Re6 {[%clk 0:00:07]}  Kg7 {[%clk 0:00:09]} 35. Rxb6 {[%clk 0:00:06]}  Rd2+ {[%clk 0:00:10]} 36. Kf3 {[%clk 0:00:07]}  Rxb2 {[%clk 0:00:10]} 37. a4 {[%clk 0:00:05]}  Nb3 {[%clk 0:00:09]} 38. Bxb3 {[%clk 0:00:03]}  Rxb3+ {[%clk 0:00:10]} 39. Ke2 {[%clk 0:00:04]}  Rxg3 {[%clk 0:00:09]} 40. a5 {[%clk 0:00:03]}  Rxh3 {[%clk 0:00:07]} 41. a6 {[%clk 0:00:03]}  Rh2+ {[%clk 0:00:06]} 42. Kf3 {[%clk 0:00:03]}  Ra2 {[%clk 0:00:06]} 43. a7 {[%clk 0:00:03]}  d3 {[%clk 0:00:06]} 44. Rb8 {[%clk 0:00:03]}  d2 {[%clk 0:00:03]} 45. Ke2 {[%clk 0:00:04]}  Ra1 {[%clk 0:00:01]} 46. Kxd2 {[%clk 0:00:03]}  g5 {[%clk 0:00:02]} 47. a8=Q {[%clk 0:00:03]}  Rxa8 {[%clk 0:00:03]} 48. Rxa8 {[%clk 0:00:04]}  gxf4 {[%clk 0:00:02]} 49. Ke2 {[%clk 0:00:04]}  Kg6 {[%clk 0:00:02]} 50. Kf3 {[%clk 0:00:04]}  Bg5 {[%clk 0:00:03]} 51. Ra6+ {[%clk 0:00:04]}  Bf6 {[%clk 0:00:03]} 52. Nd6 {[%clk 0:00:04]}  Kg5 {[%clk 0:00:04]} 53. Nf7+ {[%clk 0:00:04]}  Kg6 {[%clk 0:00:05]} 54. Ne5+ {[%clk 0:00:04]}  Kg5 {[%clk 0:00:06]} 55. Nd7 {[%clk 0:00:04]}  Bd4 {[%clk 0:00:07]} 56. Nf8 {[%clk 0:00:04]}  Be3 {[%clk 0:00:05]} 57. Nxh7+ {[%clk 0:00:04]}  Kh5 {[%clk 0:00:06]} 58. Nf6+ {[%clk 0:00:04]}  Kg5 {[%clk 0:00:06]} 59. Nd5 {[%clk 0:00:04]}  Bd2 {[%clk 0:00:07]} 60. Ra2 {[%clk 0:00:04]}  Bc1 {[%clk 0:00:07]} 61. Rc2 {[%clk 0:00:04]}  Ba3 {[%clk 0:00:07]} 62. Nxf4 {[%clk 0:00:04]}  Bd6 {[%clk 0:00:07]} 63. Rg2+ {[%clk 0:00:04]}  Kf6 {[%clk 0:00:07]} 64. Rg6+ {[%clk 0:00:05]}  Ke5 {[%clk 0:00:04]} 65. Re6+ {[%clk 0:00:05]} 1-0